Cogmind - Beta 15 @@@ ROGUE MODE // 2025.10.16 @ 02:25:19 Player: Auto Result: Destroyed by Y-54 Guardian with Gatling Laser Performance ------------- Evolutions (0) 0 Regions Visited (3) 600 Robots Destroyed (19) 95 Value Destroyed (540) 540 Prototype IDs (0) 0 Alien Tech Used (0) 0 Bonus (0) 0 TOTAL SCORE: 1235 Bonus ------- None Cogmind --------- Core Integrity 0/250 Matter 221/300 Energy 290/290 System Corruption 1% Temperature Cool (15) Movement Walking (190) Ox1 Location -7/Recycling Parts ------- > --- POWER (1) -------- Improved Deuterium Engine > --- PROPULSION (2) --- Aluminum Leg Aluminum Leg > --- UTILITY (2) ------ Small Storage Unit Hardened Light Armor Plating > --- WEAPON (2) ------- Gauss Rifle Subdweller Shrapnel Launcher > --- INVENTORY (8) ---- Light Treads Light Treads Wheel Compact Wheel Peak State ------------ > --- POWER ------------ Improved Deuterium Engine > --- PROPULSION ------- Aluminum Leg Aluminum Leg > --- UTILITY ---------- Small Storage Unit Hacking Suite > --- WEAPON ----------- Gauss Rifle Subdweller Shrapnel Launcher > --- INVENTORY -------- Light Treads Light Treads Wheel Compact Wheel [Rating: 16] Favorites ----------- Power Light Ion Engine Engine Light Ion Engine Propulsion Aluminum Leg Leg Aluminum Leg Utility Small Storage Unit Storage Small Storage Unit Hackware Hacking Suite Protection Hardened Light Armor Plating Weapon Medium Laser Energy Gun Medium Laser Ballistic Gun Gauss Rifle Launcher Subdweller Shrapnel Launcher Build | -11 -10 -10 -7 ------- Run | Yrd Mat Sub Rec Slots Evolved . | . . . . Power . | . . . . Propulsion . | . . . . Utility . | . . . . Weapon . | . . . . Parts Attached 19 | 7 3 6 3 Power 5 | 1 . 3 1 Engine 5 | 1 . 3 1 Core . | . . . . Reactor . | . . . . Propulsion 5 | 2 2 1 . Treads . | . . . . Leg 5 | 2 2 1 . Wheel . | . . . . Hover . | . . . . Flight . | . . . . Utility 3 | 1 1 . 1 Device . | . . . . Storage 1 | 1 . . . Processor . | . . . . Hackware 1 | . 1 . . Protection 1 | . . . 1 Artifact . | . . . . Weapon 6 | 3 . 2 1 Energy Gun 4 | 3 . 1 . Energy Cannon . | . . . . Ballistic Gun 1 | . . . 1 Ballistic Cannon . | . . . . Launcher 1 | . . 1 . Special Weapon . | . . . . Impact Weapon . | . . . . Slashing Weapon . | . . . . Piercing Weapon . | . . . . Special Melee Weapon . | . . . . Unidentified Prototypes . | . . . . Corrupted Parts 1 | . . 1 . System Corruption 1 | . . 1 . Parts Lost 5 | . . 5 . Power 1 | . . 1 . Propulsion 2 | . . 2 . Utility . | . . . . Weapon 2 | . . 2 . Highest Loss Streak 3 | . . 3 . To Critical Strikes . | . . . . Average Backups 6 | 3 7 7 4 Power . | . 1 . . Propulsion 5 | 1 5 5 4 Utility . | . . . . Weapon . | . 1 . . Tool/Special . | . . . . Unused Backups 5 | . 1 . 4 Power . | . . . . Propulsion 5 | . 1 . 4 Utility . | . . . . Weapon . | . . . . Tool/Special . | . . . . Average Slot Usage (%) 97 | . 99 96 92 Engine 13 | . 14 13 14 Leg 27 | . 28 27 28 Storage 14 | . 14 14 14 Hackware 13 | . 13 14 9 Energy Gun 21 | . 28 20 . Launcher 3 | . . 5 14 Peak Build Rating 16 | 6 9 13 16 Average Rating 9 | 5 8 10 12 On Entrance 6 | . 6 9 9 Naked Turns . | . . . . Heaviest Build 32 | 12 12 21 32 Greatest Support 20 | 20 20 20 20 Greatest Overweight (x) 1 | . . 1 1 Average Overweight (x) . | . . . . Largest Inventory Capacity 8 | 8 8 8 8 Average Capacity 7 | 7 8 8 8 Most Carried 8 | 6 8 8 4 Average Carried 6 | 3 7 7 4 Final Capacity 8 | 8 8 8 8 Final Carried 8 | 6 8 5 4 Class Distribution -------------------- 100% | Mutant Dominant Class ---------------- Mutant | -10/Materials Mutant | -10/Subcaves Mutant | -7/Recycling Resources | -11 -10 -10 -7 ----------- Run | Yrd Mat Sub Rec Matter Collected 580 | 170 130 115 165 Remotely . | . . . . Salvage Created 537 | . 275 262 . Parts 27 | . 12 15 . Haulers Intercepted . | . . . . Recyclers Shooed 3 | . 3 . . Parts Field Recycled . | . . . . Retrieved Matter . | . . . . Parts Self-Destructed 13 | . . 13 . Prevented . | . . . . Kills | -11 -10 -10 -7 ------- Run | Yrd Mat Sub Rec Combat Hostiles Destroyed 14 | . 5 9 . Guns 8 | . 3 5 . AOE 4 | . . 4 . Classes Destroyed 7 | . 3 4 . Operator 2 | . 2 . . Turret 1 | . . 1 . Watcher 2 | . 2 . . Swarmer 3 | . . 3 . Grunt 7 | . 5 2 . Sentry 1 | . . 1 . Subdweller 3 | . . 3 . Best Kill Streak 3 | . 2 3 . Combat Bots Only 3 | . 2 3 . Max Kills in Single Turn 3 | . 1 3 . Gunslinging . | . . . . Exploded 3 | . . 3 . Melee . | . . . . Uniques/NPCs Destroyed . | . . . . Combat | -11 -10 -10 -7 -------- Run | Yrd Mat Sub Rec Hostile Shots Fired 131 | . 17 84 30 Missed 50 | . 3 38 9 Hits 81 | . 14 46 21 Projectile 81 | . 14 46 21 Critical Strikes 1 | . . 1 . Damage Taken 1033 | . 171 698 164 Core 252 | . 81 150 21 Absorbed by Shields . | . . . . Core Remaining (%) 100 | 100 . . . Volleys Fired 98 | . 35 62 1 Largest 2 | . 2 2 2 Hottest 100 | . 100 100 68 Shots Fired 189 | . 70 118 1 Gun 177 | . 70 106 1 Cannon . | . . . . Launcher 12 | . . 12 . Special . | . . . . Kinetic 13 | . . 12 1 Thermal 140 | . 70 70 . Explosive . | . . . . Electromagnetic 36 | . . 36 . Robot Hit Streak 12 | . 12 12 . Robot Miss Streak 5 | . 5 1 1 Penetration Max . | . . . . Secondary Targets 1 | . . 1 . Max Gunslinging Chain 1 | . . 1 . Shots Hit Robots 84 | . 48 36 . Core Hits 31 | . 15 16 . Critical Kills . | . . . . Critical Parts Destroyed . | . . . . Critical Strikes 8 | . 6 2 . Burn 8 | . 6 2 . Melee Attacks . | . . . . Impact . | . . . . Slashing . | . . . . Piercing . | . . . . Sneak Attacks . | . . . . Combat Hostiles . | . . . . Follow-up Attacks . | . . . . Damage Inflicted 1540 | . 598 942 . Guns 1013 | . 598 415 . Cannons . | . . . . Explosions 527 | . . 527 . Melee . | . . . . Ramming . | . . . . Kinetic 527 | . . 527 . Thermal 920 | . 598 322 . Explosive . | . . . . Electromagnetic 93 | . . 93 . Impact . | . . . . Slashing . | . . . . Piercing . | . . . . Highest Corruption 1 | . . 1 1 Average Corruption 1 | . . 1 1 Corruption Purged . | . . . . Corruption Blocked . | . . . . Effects 4 | . . 3 1 Message Errors 2 | . . 1 1 Heat Flow Errors 1 | . . 1 . Misfires 1 | . . 1 . Overload Shots . | . . . . Overflow Damage 21 | . . 21 . Projectiles . | . . . . Explosions 21 | . . 21 . Melee . | . . . . Knockbacks . | . . . . Impact . | . . . . Kinetic . | . . . . Secondary . | . . . . Self-Inflicted Damage 59 | . . 59 . Shots 2 | . . 2 . Rammed . | . . . . Targets Rammed . | . . . . Kicked . | . . . . Crushed . | . . . . Highest Temperature 346 | . 346 150 9 Average Temperature 90 | . 96 31 7 Received Heat Transfer 405 | . 99 258 48 Effects 1 | . 1 . . Interference 1 | . 1 . . Siege Activations . | . . . . Martial Activations . | . . . . Shielding Activations . | . . . . Robots Disrupted . | . . . . Combat Hostiles . | . . . . Robots Corrupted . | . . . . Combat Hostiles . | . . . . Parts Fried . | . . . . Impact Corruptions . | . . . . Robots Melted 2 | . 2 . . Combat Hostiles 2 | . 2 . . Parts Melted 7 | . 5 2 . Heat Transferred 3330 | . 2220 1110 . Parts Sabotaged . | . . . . Parts Stolen . | . . . . Parts Stripped . | . . . . Power Chain Reactions . | . . . . Alert | -11 -10 -10 -7 ------- Run | Yrd Mat Sub Rec Maximum Alert Level . | . . . . Low Security (%) 100 | 100 100 . 100 Level 1 . | . . . . Level 2 . | . . . . Level 3 . | . . . . Level 4 . | . . . . Level 5 . | . . . . High Security . | . . . . Max Security . | . . . . Peak Influence 122 | . 122 . 26 Initial 26 | . . . 26 Average 22 | . 28 . 3 Influence Increases 401 | . 216 185 . Destroy 0b10 Robot/C 240 | . 100 140 . Destroy 0b10 Robot/NC 20 | . 20 . . Destroy Leader 24 | . 24 . . Successful Hack 12 | . 12 . . Lose Combat Pursuer 105 | . 60 45 . Influence Decreases 401 | . 216 129 56 Entered New Map 30 | . . . 30 Time Decay 351 | . 216 109 26 Lost Part 20 | . . 20 . Squads Dispatched 2 | . 2 . . Investigation 1 | . 1 . . Extermination . | . . . . Reinforcement 1 | . 1 . . Assault . | . . . . Garrison . | . . . . Intercept . | . . . . Searches Triggered . | . . . . Construction Impeded . | . . . . Haulers Reinforced . | . . . . Active Scanning Responses . | . . . . Cargo Convoy Interrupts . | . . . . Stealth | -11 -10 -10 -7 --------- Run | Yrd Mat Sub Rec Distress Signals 1 | . 1 . . Communications Jammed . | . . . . Distress Signals . | . . . . Times Spotted 32 | . 20 11 1 Peak Tracking Total 5 | . 5 5 1 Tactical Retreats 4 | . 2 2 . Traps | -11 -10 -10 -7 ------- Run | Yrd Mat Sub Rec Traps Triggered . | . . . . Indirectly . | . . . . Trap Hack Attempts . | . . . . Triggered . | . . . . Disarmed . | . . . . Reprogrammed . | . . . . Reused . | . . . . Traps Extracted . | . . . . Installed . | . . . . Triggered . | . . . . Machines | -11 -10 -10 -7 ---------- Run | Yrd Mat Sub Rec Machines Disabled 4 | . . 4 . Max in Single Turn 2 | . . 2 . Machines Repaired . | . . . . Machines Dismantled . | . . . . Machines Sabotaged . | . . . . Overloaded Fab Kills . | . . . . Hacking | -11 -10 -10 -7 --------- Run | Yrd Mat Sub Rec Machines Accessed 8 | . 5 . 3 Terminals 8 | . 5 . 3 Fabricators . | . . . . Repair Stations . | . . . . Recycling Units . | . . . . Scanalyzers . | . . . . Garrison Access . | . . . . Total Hacks 17 | . 14 . 3 Successful 6 | . 6 . . Failed 11 | . 8 . 3 Catastrophic 2 | . . . 2 Database Lockouts . | . . . . Manual 17 | . 14 . 3 Terminals 17 | . 14 . 3 Fabricators . | . . . . Repair Stations . | . . . . Recycling Units . | . . . . Scanalyzers . | . . . . Garrison Access . | . . . . Terminal Hacks 1 | . 1 . . Terminal Index 1 | . 1 . . Fabricator Hacks . | . . . . Repair Station Hacks . | . . . . Recycling Unit Hacks . | . . . . Scanalyzer . | . . . . Garrison Access Hacks . | . . . . Unauthorized Hacks 5 | . 5 . . Terminals 5 | . 5 . . Assimilate 1 | . 1 . . Botnet 2 | . 2 . . Operators 1 | . 1 . . Search 1 | . 1 . . Fabricators . | . . . . Repair Stations . | . . . . Recycling Units . | . . . . Scanalyzers . | . . . . Garrison Access . | . . . . Data Cores Recovered 1 | . 1 . . Used 1 | . 1 . . Hacking Detections 7 | . 4 . 3 Full Trace Events 2 | . 2 . . Feedback Events . | . . . . Feedback Blocked . | . . . . Robot Schematics Acquired . | . . . . Robots Built . | . . . . Authchips . | . . . . Time . | . . . . Total Robot Build Rating . | . . . . Part Schematics Acquired . | . . . . Parts Built . | . . . . Authchips . | . . . . Time . | . . . . Total Part Build Rating . | . . . . Parts Repaired . | . . . . Time . | . . . . Parts Recycled . | . . . . Recycled Matter . | . . . . Retrieved Matter . | . . . . Retrieved Components . | . . . . Parts Scanalyzed . | . . . . Part Schematics Acquired . | . . . . Parts Damaged . | . . . . Bothacking | -11 -10 -10 -7 ------------ Run | Yrd Mat Sub Rec Used RIF Installer . | . . . . Robots Hacked . | . . . . Non-combat . | . . . . Combat . | . . . . Robot Hacks Applied . | . . . . Relay Couplers Released . | . . . . Fabnet Peak Effective % . | . . . . Robots Rewired . | . . . . Allies Hacked . | . . . . Hacks Repelled . | . . . . Allies | -11 -10 -10 -7 -------- Run | Yrd Mat Sub Rec Total Allies . | . . . . Largest Group . | . . . . Highest-Rated Group . | . . . . Highest-Rated Ally . | . . . . Total Orders . | . . . . Ally Attacks . | . . . . Total Damage . | . . . . Kills . | . . . . Allies Corrupted . | . . . . Allies Melted . | . . . . Intel | -11 -10 -10 -7 ------- Run | Yrd Mat Sub Rec Active Infowar (turns) . | . . . . Robot Analysis Total . | . . . . Derelict Logs Recovered . | . . . . Drone Launches . | . . . . Drone Recoveries . | . . . . Exploration | -11 -10 -10 -7 ------------- Run | Yrd Mat Sub Rec Turns Passed 2626 | 88 1079 1209 250 Spaces Moved 1386 | 56 447 738 145 Core 8 | 8 . . . Treads . | . . . . Legs 1378 | 48 447 738 145 Wheels . | . . . . Hover . | . . . . Flight . | . . . . Fastest Speed 50 | 50 120 120 120 Average Speed 128 | 110 120 131 146 Slowest Speed 190 | 120 120 190 190 Overloaded Moves . | . . . . Propulsion Burnouts . | . . . . Robots Hopped . | . . . . Potential Cave-ins . | . . . . Cave-ins Triggered . | . . . . Exploration Rate (%) 31 | 5 48 41 32 Regions Visited 3 Branch Regions 2 Pre-discovered Areas . | . . . . Known Exits Taken . | . . . . Unknown Exits Taken 3 | 1 1 1 . Scrap Searched . | . . . . Spaces Dug . | . . . . Terrain Destroyed 144 | . . 144 . Melee . | . . . . Projectile . | . . . . AOE 144 | . . 144 . Terrain Rammed . | . . . . Walls Destroyed . | . . . . Machines Disabled . | . . . . Actions | -11 -10 -10 -7 --------- Run | Yrd Mat Sub Rec Total 2041 | 79 921 859 182 Wait 517 | 11 431 45 30 Move 1383 | 55 446 737 145 Hop . | . . . . Pick Up 11 | 6 4 1 . Fast Attach 12 | 6 1 2 3 Attach 3 | . . 2 1 Detach . | . . . . Swap 9 | 1 2 6 . Drop 8 | . 2 4 2 Fire 98 | . 35 62 1 Melee . | . . . . Ram . | . . . . Kick . | . . . . Crush . | . . . . Escape Stasis . | . . . . Rewire . | . . . . Trap . | . . . . Miscellaneous . | . . . . Route ------- -11/Scrapyard -10/Materials (discovered 3 exits: [*Mat] / [*Min] / [*Sub]) -10/Subcaves -7/Recycling History --------- Turn | Location | Event 5 | -11/Scrapyard | Discovered new exit (range 16) 89 | -11/Scrapyard | Entered Materials 312 | -10/Materials | Build established: Mutant 372 | -10/Materials | Discovered new exit (range 12) 1099 | -10/Materials | Discovered new exit (range 15) 1158 | -10/Materials | Discovered new exit (range 4) 1168 | -10/Materials | Entered Subcaves 1169 | -10/Subcaves | Approached by a straggling Scientist 1271 | -10/Subcaves | Core integrity fell below 50% 1466 | -10/Subcaves | Shifting Twisted Machinery released Sub. Monowheel 1476 | -10/Subcaves | Shifting Twisted Machinery released Lgt. Humpback 1574 | -10/Subcaves | Shifting Twisted Machinery released Riot Gun 1603 | -10/Subcaves | Shifting Twisted Machinery released Sub. Shrapnel Launcher 1610 | -10/Subcaves | Shifting Twisted Machinery released Sub. Laser 1613 | -10/Subcaves | Shifting Twisted Machinery released Sub. Power Source 2059 | -10/Subcaves | Lost 3 parts (1p1n1w) 2129 | -10/Subcaves | Ambushed by Subdweller buried in earth 2262 | -10/Subcaves | Core integrity fell below 20% 2349 | -10/Subcaves | Discovered new exit (range 15) 2377 | -10/Subcaves | Entered Recycling 2627 | -7/Recycling | Destroyed by Y-54 Guardian with Gatling Laser Last Messages --------------- 02366_ System corrupted: Heat flow error (+189). LOCATION=UNKNOWN GOAL=ESCAPE 02408_ Connecting with Terminal... 02408_ Current location identified: Recycling 02417_ Connecting with Terminal... 02421_ Connecting with Recycling Unit... 02478_ Acquired 92 matter. 02481_ Sub. Power Source shoots sparks and powers down. 02481_ Acquired 73 matter. 02490_ Acquired Gauss Rifle. 02494_ Dropped Broken Sub. Power Source. 02494_ Acquired Imp. Deuterium Engine. 02509_ R-06 Scavenger collects Broken Sub. Power Source. 02542_ Discarded Hacking Suite. 02542_ Acquired Hrd. Light Armor Plating. 02564_ 3T=GNORRT3>HM VC22KRPZUEY 02587_ Connecting with Terminal... 02609_ Y-54 Guardian springs to life. 02626_ Sub. Shrapnel Launcher shoots sparks and powers down. Map ----- +----------------------------------------------------+ | ???????????????????????????????????? | | ???????????????????????????????????? | | ???????????????????????????????????? | | ???????????????????????????????????? | | ???????????????????????????????????? | | ???????????????????????????????????? | | ???????????????##########??????????? | | ???????????????# #??????????? | | ??#########????# #??????????? | | ??# ###### #??????????? | | ??# # + "" #??????????? | | ??# # # """ #??????????? | | ??# # # T" #??????????? | | ??# + # """ #??????????? | | ??# # # "" #??????????? | | ??# # # #??????????? | | ??# # ##########??????????? | | ?# # #??????????????????? | | ?## # ##??????????????????? | | ??# # #???????????????????? | | ??######### #???????????????????? | | ??????????# #???????????????????? | | ??#########Y##+###?????????????????? | | ??# # # #?????????????????? | | ??# # #! #?????????????????? | | ??# #@# #?????????????????? | | ??# # # #?????????????????? | | ??# # # ! !#?????????????????? | | ??# # # =#?????????????????? | | ??# # # !#?????????????????? | | ??# # #= * #?????????????????? | | ??# # # !#?????????????????? | | ??# # # #?????????????????? | | ??# # # #?????????????????? | | ??# # # #?????????????????? | | ??# # # #?????????????????? | | ??# # ###+#########+##???????? | | ??# # ????? | | ??# + ????? | | ??# # ????? | | ??# # #! !#?????? | | ??# # #?????????? | | ??# + #?????????? | | ??# ###### #?????????? | | ??######+##????? #?????????? | | ???????# #??##?? !????????? | | ??????## ### ### !!#???????? | | ??????# !!#???????? | | ??????# ##????????? | | ??????# #?????????? | +----------------------------------------------------+ Best States ------------- Heat Dissipation 25 Energy Generation 16 Energy Capacity 290 Matter Stores 300 Matter Capacity 300 Sight Range 16 Terrain Scan Density 10 Armor Coverage 150 Evasion (%) 55 Offensive Hacking 10 Item Schematics ----------------- None Robot Schematics ------------------ None Fabricated ------------ Nothing Repaired ---------- Nothing Alien Tech Used ----------------- None Achievements -------------- None Challenges ------------ None Game ------ Seed SystemBladeFlamer Manual? 0 Play Time 00:17:32 Cumulative 62.1 hours Start 2025.10.16 @ 02:09:43 End 2025.10.16 @ 02:25:19 Sessions 1 Manual Loads 0 Difficulty Rogue Special Mode None Game No. 46 Rogue 21 Adventurer 25 Explorer 0 Win Type - Total 0 Types 0/0/0/0/0/0/0/0/0/0 Lore% 21 Gallery% 31 Achievement% 29 Wizard Run 0 Options --------- Layout 0 ASCII 0 Keyboard 0 Movement Mouse Keybinds 0 Fullscreen 2 Font 18/SmallcapsGlow Map View 76x50 Zoom Use 0% Tactical HUD 1 Map Filters NONE Filters NONE Steam 1 RUN: 0280ed42-e7f3-42c0-890d-626472ff4806